Workbook

Sheet NSU
B1: Eveliina Rantonen | E1: 28.6.1997 Pyhäjärvi
B2: SUPERPESIS | E2: Runkosarja | I2: Kärkilyönnit (KL), pesänvälit | P2: Ylempi loppusarja | U2: Alempi loppusarja | AB2: Arvo-ottelut ja mitalit
B3: Vuosi | C3: Sija | D3: Seura | E3: OTT | F3: KUN | G3: LÖI | H3: TOI | I3: KL | J3: 0 > 1 | K3: 1 > 2 | L3: 2 > 3 | M3: 3 > k | N3: KL-% | P3: OTT | Q3: KUN | R3: LÖI | S3: TOI | T3: KL | U3: OTT | V3: KUN | W3: LÖI | X3: TOI | Y3: KL | Z3: IL | AA3: LL | AB3: Halli | AC3: K | AD3: H | AE3: P
B4: 2013 | D4: Huima | F4: suomensarja
B5: 2014 | D5: Huima | F5: suomensarja
B6: 2015 | D6: VuVe | F6: suomensarja
B7: 2016 | D7: VuVe | F7: suomensarja
B8: 2016 | C8: 9. | D8: KPK | E8: 1 | F8: 0 | G8: 0 | H8: 0 | I8: 2 | J8: 2 | K8: 0 | L8: 0 | M8: 0 | N8: 40.0 % | O8: 5
B9: 2017 | D9: YK | F9: ykköspesis | O9: 0
B10: 2018 | D10: YK | F10: ykköspesis | O10: 0
B11: 2018 | C11: 9. | D11: Lipottaret | E11: 1 | F11: 0 | G11: 0 | H11: 0 | I11: 0 | J11: 0 | K11: 0 | L11: 0 | M11: 0 | N11: 0.0 % | O11: 6
B12: 2019 | D12: Pesä Ysit 2 | F12: suomensarja
B13: 2019 | C13: 9. | D13: Pesä Ysit | E13: 24 | F13: 1 | G13: 4 | H13: 10 | I13: 76 | J13: 47 | K13: 19 | L13: 5 | M13: 5 | N13: 39.0 % | O13: 195
B14: 2020 | C14: 10. | D14: Pesä Ysit | E14: 16 | F14: 1 | G14: 0 | H14: 14 | I14: 64 | J14: 49 | K14: 13 | L14: 1 | M14: 1 | N14: 57.7 % | O14: 111
B15: 2020 | C15: 1. | D15: Kirittäret | P15: 9 | Q15: 0 | R15: 3 | S15: 3 | T15: 12 | AC15: 1
B16: 2021 | C16: 12. | D16: Pesä Ysit | E16: 23 | F16: 1 | G16: 2 | H16: 25 | I16: 86 | J16: 55 | K16: 25 | L16: 3 | M16: 3 | N16: 56.6 % | O16: 152 | U16: 5 | V16: 1 | W16: 0 | X16: 10 | Y16: 26
B17: 2022 | C17: 8. | D17: Tahko | E17: 24 | F17: 1 | G17: 1 | H17: 8 | I17: 69 | J17: 51 | K17: 11 | L17: 5 | M17: 2 | N17: 54.3 % | O17: 127 | P17: 3 | Q17: 0 | R17: 0 | S17: 2 | T17: 9
B18: 2023 | C18: 5. | D18: Kirittäret | E18: 21 | F18: 1 | G18: 1 | H18: 5 | I18: 37 | J18: 26 | K18: 4 | L18: 5 | M18: 2 | N18: 54.4 % | O18: 68 | P18: 4 | Q18: 0 | R18: 0 | S18: 1 | T18: 3
B19: Yhteensä | E19: =SUM(E4:E18) -> 110 | F19: 5 | G19: 8 | H19: 62 | I19: 334 | J19: 230 | K19: 72 | L19: 19 | M19: 13 | N19: =PRODUCT(I19/O19) -> 50.3 % | O19: =SUM(O7:O18) -> 664 | P19: =SUM(P4:P18) -> 16 | Q19: 0 | R19: 3 | S19: 6 | T19: 24 | U19: 5 | V19: 1 | W19: 0 | X19: 10 | Y19: 26 | Z19: 0 | AA19: 0 | AB19: 0 | AC19: 1 | AD19: 0 | AE19: 0
B20: Pesispörssi | D20: =SUM(F19:H19)+((I19-F19-G19)/3)+(E19/3)+(Z19*25)+(AA19*25)+(AB19*10)+(AC19*25)+(AD19*20)+(AE19*15)-25 -> 218.7
B22: URA SUPERISSA | E22: OTT | F22: KUN | G22: LÖI | H22: TOI | I22: KL | K22: ka/L | L22: ka/T | M22: ka/KL | N22: K - % | P22: ENSIMMÄISET
B23: Runkosarja | E23: =PRODUCT(E19) -> 110 | F23: =PRODUCT(F19) -> 5 | G23: =PRODUCT(G19) -> 8 | H23: =PRODUCT(H19) -> 62 | I23: =PRODUCT(I19) -> 334 | K23: =PRODUCT((F23+G23)/E23) -> 0.12 | L23: =PRODUCT(H23/E23) -> 0.56 | M23: =PRODUCT(I23/E23) -> 3.04 | N23: =PRODUCT(N19) -> 50.3 % | O23: =PRODUCT(O19) -> 664 | P23: Ottelu | R23: 15.07. 2016 Lukko - KPK 2-0 (5-0, 2-0) | AA23: 1. ottelu | AC23: 18 v 10 kk 17 pv
B24: Ylempi loppusarja | E24: =PRODUCT(P19) -> 16 | F24: =PRODUCT(Q19) -> 0 | G24: 3 | H24: 6 | I24: 24 | K24: =PRODUCT((F24+G24)/E24) -> 0.19 | L24: =PRODUCT(H24/E24) -> 0.38 | M24: =PRODUCT(I24/E24) -> 1.50 | N24: =PRODUCT(I24/O24) -> 61.5 % | O24: 39 | P24: Lyöty | R24: 15.05. 2019 Pesä Ysit - Fera 1-2 (2-1, 3-8, 0-1) | AA24: 3. ottelu | AC24: 21 v 10 kk 17 pv
B25: Alempi loppusarja | E25: =PRODUCT(U19) -> 5 | F25: =PRODUCT(V19) -> 1 | G25: =PRODUCT(W19) -> 0 | H25: =PRODUCT(X19) -> 10 | I25: =PRODUCT(Y19) -> 26 | K25: =PRODUCT((F25+G25)/E25) -> 0.20 | L25: =PRODUCT(H25/E25) -> 2.00 | M25: =PRODUCT(I25/E25) -> 5.20 | N25: =PRODUCT(I25/O25) -> 68.4 % | O25: 38 | P25: Tuotu | R25: 15.05. 2019 Pesä Ysit - Fera 1-2 (2-1, 3-8, 0-1) | AA25: 3. ottelu | AC25: 21 v 10 kk 17 pv
B26: KAIKKI | E26: =SUM(E23:E25) -> 131 | F26: =SUM(F23:F25) -> 6 | G26: =SUM(G23:G25) -> 11 | H26: =SUM(H23:H25) -> 78 | I26: =SUM(I23:I25) -> 384 | K26: =PRODUCT((F26+G26)/E26) -> 0.13 | L26: =PRODUCT(H26/E26) -> 0.60 | M26: =PRODUCT(I26/E26) -> 2.93 | N26: =PRODUCT(I26/O26) -> 51.8 % | O26: =SUM(O23:O25) -> 741 | P26: Kunnari | R26: 15.05. 2019 Pesä Ysit - Fera 1-2 (2-1, 3-8, 0-1) | AA26: 3. ottelu | AC26: 21 v 10 kk 17 pv
B28: Seurat | D28: Pohti = Pyhäjärven Pohti (1934), kasvattajaseura | L28: YK = Ylivieskan Kuula (1909) | U28: Tahko = Hyvinkään Tahko (1915)
D29: Huima = Oulaisten Huima (1909) | L29: Lipottaret = Oulun Lipottaret (2014)
D30: VuVe = Vuokatin Veto (1946) | L30: Pesä Ysit (1976)
D31: KPK = Kajaanin Pallokerho (1933) | L31: Kirittäret = Jyväskylän Kirittäret (2004)
